[Event "Titled Tuesday Blitz January 10 Late 2023"]
[White "Xiong, Jeffery"]
[Black "Nakamura, Hikaru"]
[WhiteFideId "2047640"]
[BlackFideId "2016192"]
[WhiteElo "2692"]
[BlackElo "2775"]
[Result "1/2-1/2"]
[Round "08"]
[TimeControl "180+2"]
[Date "2023.01.10"]
[WhiteClock "0:01:29"]
[BlackClock "0:00:31"]

1. e4 {[%clk 0:00:00]}  g6 {[%clk 0:00:00]} 2. d4 {[%clk 0:03:00]}  Nf6 {[%clk 0:02:57]} 3. e5 {[%clk 0:03:01]}  Nd5 {[%clk 0:02:57]} 4. h4 {[%clk 0:02:51]}  h6 {[%clk 0:02:57]} 5. h5 {[%clk 0:02:47]}  g5 {[%clk 0:02:52]} 6. c4 {[%clk 0:02:47]}  Nb6 {[%clk 0:02:52]} 7. Nc3 {[%clk 0:02:48]}  d6 {[%clk 0:02:52]} 8. exd6 {[%clk 0:02:49]}  cxd6 {[%clk 0:02:52]} 9. Bd3 {[%clk 0:02:50]}  Bg7 {[%clk 0:02:50]} 10. Nge2 {[%clk 0:02:50]}  Nc6 {[%clk 0:02:50]} 11. d5 {[%clk 0:02:50]}  Ne5 {[%clk 0:02:50]} 12. b3 {[%clk 0:02:50]}  O-O {[%clk 0:02:51]} 13. Bb2 {[%clk 0:02:51]}  e6 {[%clk 0:02:43]} 14. dxe6 {[%clk 0:02:52]}  Bxe6 {[%clk 0:02:37]} 15. Be4 {[%clk 0:02:48]}  Qe7 {[%clk 0:02:36]} 16. O-O {[%clk 0:02:48]}  f5 {[%clk 0:02:35]} 17. Bc2 {[%clk 0:02:47]}  Nc6 {[%clk 0:01:58]} 18. Re1 {[%clk 0:02:47]}  Qf7 {[%clk 0:01:51]} 19. Ng3 {[%clk 0:02:46]}  Be5 {[%clk 0:01:49]} 20. Rb1 {[%clk 0:02:45]}  Qg7 {[%clk 0:01:49]} 21. Nb5 {[%clk 0:02:37]}  Rad8 {[%clk 0:01:43]} 22. c5 {[%clk 0:02:27]}  dxc5 {[%clk 0:01:40]} 23. Qe2 {[%clk 0:02:01]}  Nd7 {[%clk 0:01:30]} 24. Nc7 {[%clk 0:02:02]}  Qf6 {[%clk 0:01:28]} 25. Nxe6 {[%clk 0:02:02]}  Qxe6 {[%clk 0:01:26]} 26. b4 {[%clk 0:01:41]}  Qf6 {[%clk 0:01:26]} 27. b5 {[%clk 0:01:42]}  Nd4 {[%clk 0:01:16]} 28. Bxd4 {[%clk 0:01:40]}  Bxd4 {[%clk 0:01:10]} 29. Nxf5 {[%clk 0:01:41]}  Ne5 {[%clk 0:01:02]} 30. Qe4 {[%clk 0:01:40]}  Rd7 {[%clk 0:00:51]} 31. Re2 {[%clk 0:01:35]}  Bc3 {[%clk 0:00:45]} 32. Rb3 {[%clk 0:01:35]}  Ba1 {[%clk 0:00:31]} 33. Rb1 {[%clk 0:01:30]}  Bc3 {[%clk 0:00:31]} 34. Rb3 {[%clk 0:01:28]}  Ba1 {[%clk 0:00:30]} 35. Rb1 {[%clk 0:01:29]}  Bc3 {[%clk 0:00:31]} 1/2-1/2


[Site "https://www.chess.com"]

[Event "Titled Tuesday Blitz January 10 Late 2023"]
[White "Jobava, Baadur"]
[Black "Vachier-Lagrave, Maxime"]
[WhiteFideId "13601520"]
[BlackFideId "623539"]
[WhiteElo "2578"]
[BlackElo "2742"]
[Result "1-0"]
[Round "08"]
[TimeControl "180+2"]
[Date "2023.01.10"]
[WhiteClock "0:00:18"]
[BlackClock "0:00:12"]

1. b3 {[%clk 0:00:00]}  Nf6 {[%clk 0:00:00]} 2. Bb2 {[%clk 0:02:55]}  g6 {[%clk 0:02:59]} 3. Bxf6 {[%clk 0:02:55]}  exf6 {[%clk 0:03:00]} 4. c4 {[%clk 0:02:55]}  Bg7 {[%clk 0:03:00]} 5. Nc3 {[%clk 0:02:55]}  O-O {[%clk 0:03:00]} 6. g3 {[%clk 0:02:56]}  f5 {[%clk 0:03:01]} 7. Bg2 {[%clk 0:02:56]}  d6 {[%clk 0:02:57]} 8. e3 {[%clk 0:02:57]}  Nd7 {[%clk 0:02:55]} 9. Nge2 {[%clk 0:02:57]}  Nf6 {[%clk 0:02:55]} 10. d4 {[%clk 0:02:57]}  h5 {[%clk 0:02:55]} 11. O-O {[%clk 0:02:58]}  h4 {[%clk 0:02:55]} 12. b4 {[%clk 0:02:58]}  Rb8 {[%clk 0:02:55]} 13. b5 {[%clk 0:02:59]}  Be6 {[%clk 0:02:41]} 14. Qd3 {[%clk 0:02:57]}  hxg3 {[%clk 0:02:40]} 15. hxg3 {[%clk 0:02:56]}  Ng4 {[%clk 0:02:35]} 16. Rac1 {[%clk 0:02:56]}  Qg5 {[%clk 0:02:35]} 17. Rfe1 {[%clk 0:02:45]}  Qh6 {[%clk 0:02:34]} 18. Nf4 {[%clk 0:02:40]}  Qh2+ {[%clk 0:02:29]} 19. Kf1 {[%clk 0:02:36]}  g5 {[%clk 0:02:19]} 20. Nfd5 {[%clk 0:02:36]}  Rbe8 {[%clk 0:02:19]} 21. Nxc7 {[%clk 0:02:30]}  Rc8 {[%clk 0:01:23]} 22. N3d5 {[%clk 0:02:15]}  Kh8 {[%clk 0:01:23]} 23. Nxe6 {[%clk 0:02:09]}  fxe6 {[%clk 0:01:21]} 24. Ne7 {[%clk 0:02:00]}  f4 {[%clk 0:01:21]} 25. exf4 {[%clk 0:02:01]}  gxf4 {[%clk 0:01:10]} 26. gxf4 {[%clk 0:01:57]}  Rxf4 {[%clk 0:01:10]} 27. Ng6+ {[%clk 0:01:33]}  Kg8 {[%clk 0:01:05]} 28. Nxf4 {[%clk 0:01:28]}  Qxf4 {[%clk 0:01:05]} 29. Rc2 {[%clk 0:01:26]}  Rf8 {[%clk 0:01:06]} 30. Qe4 {[%clk 0:01:20]}  Qg3 {[%clk 0:00:56]} 31. Ree2 {[%clk 0:01:13]}  e5 {[%clk 0:00:46]} 32. Ke1 {[%clk 0:00:45]}  Qh4 {[%clk 0:00:44]} 33. c5 {[%clk 0:00:38]}  d5 {[%clk 0:00:45]} 34. Qxd5+ {[%clk 0:00:26]}  Kh8 {[%clk 0:00:20]} 35. c6 {[%clk 0:00:25]}  bxc6 {[%clk 0:00:21]} 36. bxc6 {[%clk 0:00:22]}  exd4 {[%clk 0:00:19]} 37. c7 {[%clk 0:00:23]}  Ne3 {[%clk 0:00:12]} 38. Rxe3 {[%clk 0:00:22]}  dxe3 {[%clk 0:00:12]} 39. c8=Q {[%clk 0:00:18]}  Qb4+ {[%clk 0:00:13]} 40. Ke2 {[%clk 0:00:18]}  exf2 {[%clk 0:00:12]} 41. Qh5+ {[%clk 0:00:18]} 1-0


[Site "https://www.chess.com"]

[Event "Titled Tuesday Blitz January 10 Late 2023"]
[White "Mosadeghpour, Masoud"]
[Black "Sevian, Samuel"]
[WhiteFideId "12519278"]
[BlackFideId "2040506"]
[WhiteElo "2472"]
[BlackElo "2684"]
[Result "1/2-1/2"]
[Round "08"]
[TimeControl "180+2"]
[Date "2023.01.10"]
[WhiteClock "0:00:30"]
[BlackClock "0:00:04"]

1. e4 {[%clk 0:00:00]}  c6 {[%clk 0:00:00]} 2. d4 {[%clk 0:03:00]}  d5 {[%clk 0:02:57]} 3. Nd2 {[%clk 0:02:59]}  dxe4 {[%clk 0:02:58]} 4. Nxe4 {[%clk 0:02:58]}  Bf5 {[%clk 0:02:54]} 5. Ng3 {[%clk 0:02:59]}  Bg6 {[%clk 0:02:55]} 6. Nh3 {[%clk 0:02:59]}  e6 {[%clk 0:02:55]} 7. Bc4 {[%clk 0:03:00]}  Bd6 {[%clk 0:02:53]} 8. O-O {[%clk 0:03:00]}  Nf6 {[%clk 0:02:53]} 9. Nf4 {[%clk 0:03:00]}  Nbd7 {[%clk 0:02:53]} 10. Re1 {[%clk 0:03:00]}  Qc7 {[%clk 0:02:49]} 11. Qf3 {[%clk 0:02:57]}  O-O-O {[%clk 0:02:40]} 12. c3 {[%clk 0:02:52]}  Nb6 {[%clk 0:02:33]} 13. Bb3 {[%clk 0:02:48]}  Nbd5 {[%clk 0:02:27]} 14. Nxd5 {[%clk 0:02:48]}  cxd5 {[%clk 0:02:21]} 15. Bg5 {[%clk 0:02:43]}  Kb8 {[%clk 0:02:17]} 16. Rac1 {[%clk 0:02:43]}  Rc8 {[%clk 0:02:07]} 17. Nf1 {[%clk 0:02:39]}  Ne4 {[%clk 0:01:58]} 18. Be3 {[%clk 0:02:26]}  Qa5 {[%clk 0:01:53]} 19. Nd2 {[%clk 0:02:25]}  Nxd2 {[%clk 0:01:32]} 20. Bxd2 {[%clk 0:02:22]}  h5 {[%clk 0:01:15]} 21. Qe2 {[%clk 0:02:22]}  Qc7 {[%clk 0:01:15]} 22. h3 {[%clk 0:02:19]}  Bf4 {[%clk 0:01:13]} 23. c4 {[%clk 0:02:17]}  Bxd2 {[%clk 0:01:07]} 24. Qxd2 {[%clk 0:02:14]}  dxc4 {[%clk 0:01:03]} 25. Rxc4 {[%clk 0:02:14]}  Qd6 {[%clk 0:01:03]} 26. Rec1 {[%clk 0:02:14]}  Rxc4 {[%clk 0:01:03]} 27. Rxc4 {[%clk 0:02:14]}  Be4 {[%clk 0:01:03]} 28. Qg5 {[%clk 0:02:15]}  g6 {[%clk 0:00:53]} 29. Qf6 {[%clk 0:02:12]}  Rf8 {[%clk 0:00:48]} 30. Rc5 {[%clk 0:02:09]}  Bc6 {[%clk 0:00:47]} 31. Rg5 {[%clk 0:02:08]}  a6 {[%clk 0:00:44]} 32. d5 {[%clk 0:02:02]}  Bd7 {[%clk 0:00:42]} 33. dxe6 {[%clk 0:01:58]}  Bxe6 {[%clk 0:00:22]} 34. Bxe6 {[%clk 0:01:58]}  fxe6 {[%clk 0:00:23]} 35. Qe5 {[%clk 0:01:58]}  Qxe5 {[%clk 0:00:24]} 36. Rxe5 {[%clk 0:01:56]}  Rf6 {[%clk 0:00:23]} 37. g4 {[%clk 0:01:56]}  hxg4 {[%clk 0:00:24]} 38. hxg4 {[%clk 0:01:53]}  Kc7 {[%clk 0:00:25]} 39. Kg2 {[%clk 0:01:54]}  Kd6 {[%clk 0:00:26]} 40. Re4 {[%clk 0:01:53]}  e5 {[%clk 0:00:26]} 41. Kg3 {[%clk 0:01:51]}  Kd5 {[%clk 0:00:25]} 42. f3 {[%clk 0:01:49]}  Rc6 {[%clk 0:00:25]} 43. Re2 {[%clk 0:01:48]}  Rc1 {[%clk 0:00:26]} 44. Kh4 {[%clk 0:01:47]}  Rf1 {[%clk 0:00:26]} 45. Re3 {[%clk 0:01:46]}  Rf2 {[%clk 0:00:24]} 46. Rb3 {[%clk 0:01:45]}  b5 {[%clk 0:00:16]} 47. Kg5 {[%clk 0:01:45]}  Kc4 {[%clk 0:00:16]} 48. Kxg6 {[%clk 0:01:45]}  a5 {[%clk 0:00:14]} 49. Kf5 {[%clk 0:01:45]}  a4 {[%clk 0:00:15]} 50. Rc3+ {[%clk 0:01:43]}  Kd4 {[%clk 0:00:15]} 51. Ra3 {[%clk 0:01:41]}  e4 {[%clk 0:00:16]} 52. Kf4 {[%clk 0:01:16]}  b4 {[%clk 0:00:14]} 53. Re3 {[%clk 0:01:14]}  exf3 {[%clk 0:00:10]} 54. g5 {[%clk 0:01:11]}  Rxb2 {[%clk 0:00:08]} 55. Kxf3 {[%clk 0:01:09]}  Rb1 {[%clk 0:00:08]} 56. Re4+ {[%clk 0:01:06]}  Kc3 {[%clk 0:00:04]} 57. g6 {[%clk 0:01:05]}  Rf1+ {[%clk 0:00:05]} 58. Kg2 {[%clk 0:01:04]}  Rf8 {[%clk 0:00:05]} 59. Kg3 {[%clk 0:00:57]}  Rg8 {[%clk 0:00:06]} 60. Rg4 {[%clk 0:00:53]}  b3 {[%clk 0:00:06]} 61. axb3 {[%clk 0:00:49]}  axb3 {[%clk 0:00:07]} 62. Kh4 {[%clk 0:00:49]}  b2 {[%clk 0:00:06]} 63. Rg3+ {[%clk 0:00:47]}  Kc2 {[%clk 0:00:07]} 64. Rg2+ {[%clk 0:00:46]}  Kb3 {[%clk 0:00:07]} 65. Rg1 {[%clk 0:00:46]}  Ka2 {[%clk 0:00:06]} 66. Kg5 {[%clk 0:00:37]}  Rc8 {[%clk 0:00:02]} 67. g7 {[%clk 0:00:36]}  b1=Q {[%clk 0:00:02]} 68. Rxb1 {[%clk 0:00:33]}  Kxb1 {[%clk 0:00:02]} 69. Kf6 {[%clk 0:00:32]}  Rg8 {[%clk 0:00:03]} 70. Kg6 {[%clk 0:00:31]}  Rxg7+ {[%clk 0:00:04]} 71. Kxg7 {[%clk 0:00:30]} 1/2-1/2


[Site "https://www.chess.com"]

[Event "Titled Tuesday Blitz January 10 Late 2023"]
[White "Kamsky, Gata"]
[Black "Duda, Jan-Krzysztof"]
[WhiteFideId "2000024"]
[BlackFideId "1170546"]
[WhiteElo "2665"]
[BlackElo "2724"]
[Result "0-1"]
[Round "08"]
[TimeControl "180+2"]
[Date "2023.01.10"]
[WhiteClock "0:00:04"]
[BlackClock "0:00:19"]

1. d4 {[%clk 0:00:00]}  d5 {[%clk 0:00:00]} 2. Bf4 {[%clk 0:03:00]}  c5 {[%clk 0:02:59]} 3. e3 {[%clk 0:02:59]}  Nc6 {[%clk 0:03:00]} 4. c3 {[%clk 0:02:59]}  cxd4 {[%clk 0:02:59]} 5. exd4 {[%clk 0:02:59]}  Bf5 {[%clk 0:02:52]} 6. Nd2 {[%clk 0:02:59]}  e6 {[%clk 0:02:51]} 7. Ngf3 {[%clk 0:02:57]}  Bd6 {[%clk 0:02:41]} 8. Bxd6 {[%clk 0:02:56]}  Qxd6 {[%clk 0:02:35]} 9. Be2 {[%clk 0:02:55]}  h6 {[%clk 0:02:36]} 10. O-O {[%clk 0:02:50]}  Nf6 {[%clk 0:02:33]} 11. a4 {[%clk 0:02:50]}  O-O {[%clk 0:02:32]} 12. Re1 {[%clk 0:02:47]}  Rfc8 {[%clk 0:02:31]} 13. Qb3 {[%clk 0:02:46]}  Na5 {[%clk 0:02:29]} 14. Qa3 {[%clk 0:02:44]}  Qd8 {[%clk 0:02:19]} 15. Bf1 {[%clk 0:02:43]}  Rc7 {[%clk 0:02:18]} 16. Ne5 {[%clk 0:02:41]}  Rac8 {[%clk 0:02:13]} 17. Bb5 {[%clk 0:02:39]}  Ne8 {[%clk 0:02:14]} 18. Bxe8 {[%clk 0:02:36]}  Qxe8 {[%clk 0:01:52]} 19. Qb4 {[%clk 0:02:34]}  b6 {[%clk 0:01:53]} 20. h3 {[%clk 0:02:32]}  f6 {[%clk 0:01:53]} 21. Nef3 {[%clk 0:02:24]}  Qd7 {[%clk 0:01:41]} 22. Re3 {[%clk 0:02:15]}  Kf7 {[%clk 0:01:37]} 23. Qa3 {[%clk 0:02:00]}  Bc2 {[%clk 0:01:23]} 24. Ne1 {[%clk 0:01:56]}  Bh7 {[%clk 0:01:15]} 25. Nd3 {[%clk 0:01:52]}  g5 {[%clk 0:01:14]} 26. Nb4 {[%clk 0:01:49]}  Qd6 {[%clk 0:01:11]} 27. Na6 {[%clk 0:01:38]}  Qxa3 {[%clk 0:01:05]} 28. Rxa3 {[%clk 0:01:22]}  Re7 {[%clk 0:01:02]} 29. Nb4 {[%clk 0:01:22]}  h5 {[%clk 0:01:02]} 30. g3 {[%clk 0:01:20]}  Bf5 {[%clk 0:01:00]} 31. Kh2 {[%clk 0:01:14]}  Nb7 {[%clk 0:00:59]} 32. Ra1 {[%clk 0:01:14]}  a5 {[%clk 0:00:48]} 33. Nd3 {[%clk 0:01:12]}  Nd6 {[%clk 0:00:47]} 34. Ne1 {[%clk 0:01:08]}  Rb7 {[%clk 0:00:47]} 35. Nef3 {[%clk 0:01:06]}  b5 {[%clk 0:00:44]} 36. axb5 {[%clk 0:01:02]}  Rxb5 {[%clk 0:00:37]} 37. b3 {[%clk 0:00:58]}  Bc2 {[%clk 0:00:38]} 38. c4 {[%clk 0:00:56]}  dxc4 {[%clk 0:00:37]} 39. bxc4 {[%clk 0:00:53]}  Nxc4 {[%clk 0:00:35]} 40. Nxc4 {[%clk 0:00:53]}  Rxc4 {[%clk 0:00:33]} 41. Rc1 {[%clk 0:00:22]}  Bd3 {[%clk 0:00:34]} 42. Ra1 {[%clk 0:00:22]}  Bf5 {[%clk 0:00:30]} 43. Rea3 {[%clk 0:00:19]}  Rc2 {[%clk 0:00:27]} 44. Kg1 {[%clk 0:00:18]}  Rbb2 {[%clk 0:00:24]} 45. d5 {[%clk 0:00:18]}  Rxf2 {[%clk 0:00:19]} 46. dxe6+ {[%clk 0:00:04]}  Bxe6 {[%clk 0:00:19]} 0-1


[Site "https://www.chess.com"]

[Event "Titled Tuesday Blitz January 10 Late 2023"]
[White "Zhigalko, Sergei"]
[Black "Bortnyk, Olexandr"]
[WhiteFideId "13502956"]
[BlackFideId "14120828"]
[WhiteElo "2572"]
[BlackElo "2605"]
[Result "1-0"]
[Round "08"]
[TimeControl "180+2"]
[Date "2023.01.10"]
[WhiteClock "0:00:04"]
[BlackClock "0:00:09"]

1. e4 {[%clk 0:00:00]}  Nf6 {[%clk 0:00:00]} 2. e5 {[%clk 0:02:52]}  Nd5 {[%clk 0:02:52]} 3. d4 {[%clk 0:02:52]}  d6 {[%clk 0:02:53]} 4. Nf3 {[%clk 0:02:53]}  dxe5 {[%clk 0:02:53]} 5. Nxe5 {[%clk 0:02:53]}  c6 {[%clk 0:02:53]} 6. Be2 {[%clk 0:02:54]}  Bf5 {[%clk 0:02:54]} 7. O-O {[%clk 0:02:55]}  Nd7 {[%clk 0:02:54]} 8. Bd3 {[%clk 0:02:55]}  Bxd3 {[%clk 0:02:55]} 9. Nxd3 {[%clk 0:02:53]}  e6 {[%clk 0:02:54]} 10. c4 {[%clk 0:02:54]}  N5f6 {[%clk 0:02:54]} 11. Nc3 {[%clk 0:02:53]}  Bd6 {[%clk 0:02:52]} 12. Re1 {[%clk 0:02:53]}  O-O {[%clk 0:02:51]} 13. Qf3 {[%clk 0:02:53]}  Re8 {[%clk 0:02:51]} 14. Bg5 {[%clk 0:02:53]}  Qa5 {[%clk 0:02:41]} 15. c5 {[%clk 0:02:52]}  Be7 {[%clk 0:02:39]} 16. a3 {[%clk 0:02:49]}  Qa6 {[%clk 0:02:35]} 17. Rad1 {[%clk 0:02:44]}  Rad8 {[%clk 0:02:21]} 18. h3 {[%clk 0:02:43]}  Nf8 {[%clk 0:02:18]} 19. Ne5 {[%clk 0:02:42]}  Ng6 {[%clk 0:02:13]} 20. h4 {[%clk 0:02:32]}  Nxe5 {[%clk 0:02:13]} 21. dxe5 {[%clk 0:02:32]}  Nd5 {[%clk 0:01:45]} 22. Ne4 {[%clk 0:02:33]}  h6 {[%clk 0:01:45]} 23. Bxe7 {[%clk 0:02:28]}  Rxe7 {[%clk 0:01:28]} 24. Rd4 {[%clk 0:02:15]}  b6 {[%clk 0:01:29]} 25. Rc1 {[%clk 0:02:15]}  bxc5 {[%clk 0:01:25]} 26. Rxc5 {[%clk 0:02:02]}  Red7 {[%clk 0:01:19]} 27. Rcc4 {[%clk 0:01:59]}  Qb6 {[%clk 0:01:03]} 28. Nc5 {[%clk 0:01:13]}  Re7 {[%clk 0:00:19]} 29. b3 {[%clk 0:01:05]}  a5 {[%clk 0:00:17]} 30. Rg4 {[%clk 0:01:01]}  Kh8 {[%clk 0:00:16]} 31. Qe2 {[%clk 0:01:00]}  Nc7 {[%clk 0:00:15]} 32. Qe3 {[%clk 0:00:27]}  Nd5 {[%clk 0:00:15]} 33. Qc1 {[%clk 0:00:18]}  Rg8 {[%clk 0:00:04]} 34. Rg3 {[%clk 0:00:15]}  Kh7 {[%clk 0:00:04]} 35. Rcg4 {[%clk 0:00:12]}  g6 {[%clk 0:00:01]} 36. Rf3 {[%clk 0:00:13]}  h5 {[%clk 0:00:01]} 37. Rc4 {[%clk 0:00:09]}  Rg7 {[%clk 0:00:01]} 38. Qg5 {[%clk 0:00:09]}  Qc7 {[%clk 0:00:01]} 39. g4 {[%clk 0:00:09]}  hxg4 {[%clk 0:00:01]} 40. Rg3 {[%clk 0:00:10]}  Kg8 {[%clk 0:00:01]} 41. Ne4 {[%clk 0:00:10]}  Rd7 {[%clk 0:00:02]} 42. Rxg4 {[%clk 0:00:09]}  Qd8 {[%clk 0:00:02]} 43. Qd2 {[%clk 0:00:07]}  Kh8 {[%clk 0:00:02]} 44. Rxc6 {[%clk 0:00:04]}  Nf6 {[%clk 0:00:02]} 45. Rd6 {[%clk 0:00:02]}  Rxd6 {[%clk 0:00:02]} 46. Nxd6 {[%clk 0:00:01]}  Nxg4 {[%clk 0:00:02]} 47. Nxf7+ {[%clk 0:00:01]}  Rxf7 {[%clk 0:00:02]} 48. Qxd8+ {[%clk 0:00:01]}  Kg7 {[%clk 0:00:02]} 49. h5 {[%clk 0:00:02]}  Nxe5 {[%clk 0:00:03]} 50. h6+ {[%clk 0:00:02]}  Kh7 {[%clk 0:00:02]} 51. Kf1 {[%clk 0:00:02]}  Ng4 {[%clk 0:00:03]} 52. Qxa5 {[%clk 0:00:02]}  Rxf2+ {[%clk 0:00:03]} 53. Ke1 {[%clk 0:00:02]}  Rf5 {[%clk 0:00:02]} 54. Qc7+ {[%clk 0:00:03]}  Kxh6 {[%clk 0:00:03]} 55. b4 {[%clk 0:00:02]}  Re5+ {[%clk 0:00:04]} 56. Kd2 {[%clk 0:00:03]}  Rd5+ {[%clk 0:00:04]} 57. Kc3 {[%clk 0:00:03]}  e5 {[%clk 0:00:04]} 58. Qc6 {[%clk 0:00:03]}  Rd4 {[%clk 0:00:04]} 59. b5 {[%clk 0:00:02]}  Ne3 {[%clk 0:00:03]} 60. b6 {[%clk 0:00:02]}  Nd5+ {[%clk 0:00:03]} 61. Kc2 {[%clk 0:00:02]}  Ne3+ {[%clk 0:00:03]} 62. Kb2 {[%clk 0:00:02]}  Rd2+ {[%clk 0:00:01]} 63. Kc1 {[%clk 0:00:01]}  Rd1+ {[%clk 0:00:02]} 64. Kb2 {[%clk 0:00:01]}  Rd2+ {[%clk 0:00:02]} 65. Kb3 {[%clk 0:00:02]}  Rd3+ {[%clk 0:00:03]} 66. Ka4 {[%clk 0:00:02]}  Rd4+ {[%clk 0:00:03]} 67. Kb5 {[%clk 0:00:02]}  Rd5+ {[%clk 0:00:03]} 68. Qxd5 {[%clk 0:00:02]}  Nxd5 {[%clk 0:00:03]} 69. b7 {[%clk 0:00:02]}  Nc7+ {[%clk 0:00:03]} 70. Kb6 {[%clk 0:00:02]}  Nd5+ {[%clk 0:00:04]} 71. Kc6 {[%clk 0:00:02]}  Ne7+ {[%clk 0:00:04]} 72. Kc5 {[%clk 0:00:02]}  e4 {[%clk 0:00:05]} 73. b8=Q {[%clk 0:00:03]}  Kg5 {[%clk 0:00:03]} 74. Qe5+ {[%clk 0:00:03]}  Nf5 {[%clk 0:00:04]} 75. Qxe4 {[%clk 0:00:03]}  Kf6 {[%clk 0:00:05]} 76. Qc6+ {[%clk 0:00:03]}  Kg5 {[%clk 0:00:06]} 77. a4 {[%clk 0:00:03]}  Kf4 {[%clk 0:00:06]} 78. a5 {[%clk 0:00:04]}  g5 {[%clk 0:00:07]} 79. Qg6 {[%clk 0:00:04]}  g4 {[%clk 0:00:08]} 80. a6 {[%clk 0:00:04]}  Ng3 {[%clk 0:00:09]} 81. a7 {[%clk 0:00:04]}  Ne4+ {[%clk 0:00:09]} 82. Kd4 {[%clk 0:00:04]} 1-0


[Site "https://www.chess.com"]

[Event "Titled Tuesday Blitz January 10 Late 2023"]
[White "Jaracz, Pawel"]
[Black "Martinez Alcantara, Jose Eduardo"]
[WhiteFideId "1102222"]
[BlackFideId "3805662"]
[WhiteElo "2467"]
[BlackElo "2619"]
[Result "0-1"]
[Round "08"]
[TimeControl "180+2"]
[Date "2023.01.10"]
[WhiteClock "0:00:09"]
[BlackClock "0:00:15"]

1. e4 {[%clk 0:00:00]}  c5 {[%clk 0:00:00]} 2. Nf3 {[%clk 0:03:00]}  d6 {[%clk 0:02:57]} 3. d4 {[%clk 0:03:00]}  cxd4 {[%clk 0:02:56]} 4. Nxd4 {[%clk 0:03:00]}  Nf6 {[%clk 0:02:57]} 5. Nc3 {[%clk 0:03:01]}  Nc6 {[%clk 0:02:57]} 6. Bg5 {[%clk 0:03:01]}  e6 {[%clk 0:02:58]} 7. Qd2 {[%clk 0:02:56]}  a6 {[%clk 0:02:55]} 8. O-O-O {[%clk 0:02:56]}  Bd7 {[%clk 0:02:56]} 9. h4 {[%clk 0:02:55]}  h6 {[%clk 0:02:56]} 10. Be3 {[%clk 0:02:54]}  b5 {[%clk 0:02:56]} 11. f3 {[%clk 0:02:50]}  h5 {[%clk 0:02:41]} 12. Nxc6 {[%clk 0:02:49]}  Bxc6 {[%clk 0:02:34]} 13. Ne2 {[%clk 0:02:45]}  Qc7 {[%clk 0:02:35]} 14. Nd4 {[%clk 0:02:43]}  Bd7 {[%clk 0:02:34]} 15. Bg5 {[%clk 0:02:43]}  Rb8 {[%clk 0:02:33]} 16. Bd3 {[%clk 0:02:37]}  a5 {[%clk 0:02:30]} 17. f4 {[%clk 0:02:36]}  b4 {[%clk 0:02:29]} 18. Kb1 {[%clk 0:02:33]}  a4 {[%clk 0:02:24]} 19. Rhe1 {[%clk 0:02:33]}  a3 {[%clk 0:02:24]} 20. b3 {[%clk 0:02:32]}  Be7 {[%clk 0:02:24]} 21. Bc4 {[%clk 0:02:31]}  e5 {[%clk 0:02:20]} 22. Nf3 {[%clk 0:02:14]}  Bg4 {[%clk 0:01:20]} 23. Bxf6 {[%clk 0:01:47]}  gxf6 {[%clk 0:01:18]} 24. Rc1 {[%clk 0:01:02]}  Qc5 {[%clk 0:01:05]} 25. f5 {[%clk 0:00:57]}  Bf8 {[%clk 0:01:01]} 26. Rcd1 {[%clk 0:00:50]}  Ke7 {[%clk 0:01:00]} 27. c3 {[%clk 0:00:41]}  Bh6 {[%clk 0:00:52]} 28. Qc2 {[%clk 0:00:39]}  bxc3 {[%clk 0:00:50]} 29. Qxc3 {[%clk 0:00:39]}  Rhc8 {[%clk 0:00:49]} 30. Ka1 {[%clk 0:00:36]}  Qb4 {[%clk 0:00:47]} 31. Rd3 {[%clk 0:00:34]}  Qxc3+ {[%clk 0:00:42]} 32. Rxc3 {[%clk 0:00:26]}  Bf4 {[%clk 0:00:35]} 33. Rd3 {[%clk 0:00:26]}  Rb4 {[%clk 0:00:31]} 34. Red1 {[%clk 0:00:25]}  Rc6 {[%clk 0:00:28]} 35. Rd5 {[%clk 0:00:23]}  Be3 {[%clk 0:00:25]} 36. R1d3 {[%clk 0:00:18]}  Bc5 {[%clk 0:00:18]} 37. Ne1 {[%clk 0:00:12]}  Be2 {[%clk 0:00:16]} 38. Rc3 {[%clk 0:00:09]}  Bd4 {[%clk 0:00:15]} 0-1


[Site "https://www.chess.com"]